{"text_format":"3","workbook":"xlsx","n_sheets":1,"sheets":["Δανεισμός από βιβλιοθήκη"],"not_rendered":{"defined_names":4},"read":"whole","date_system":"1900"}

{"sheet":"Δανεισμός από βιβλιοθήκη","index":0,"n_rows":9,"n_cols":8,"rows_kept":9,"merged":[[0,1,0,4],[0,5,0,6]]}
[null,"Φύλλο δανεισμού βιβλίων από βιβλιοθήκη",{"$nulls":3},"ΗΜΈΡΕΣ ΜΈΧΡΙ ΝΑ ΕΙΝΑΙ ΕΚΠΡΌΘΕΣΜΟ: ",null,10]
["Εκπρόθεσμο","ΜΑΘΗΤΗΣ","ΔΙΕΥΘΥΝΣΗ ΗΛΕΚΤΡΟΝΙΚΟΎ ΤΑΧΥΔΡΟΜΕΊΟΥ ΕΠΙΚΟΙΝΩΝΊΑΣ","ΤΗΛΕΦΩΝΟ ΕΠΙΚΟΙΝΩΝΙΑΣ","ΤΊΤΛΟΣ ΒΙΒΛΊΟΥ","ΗΜΕΡΟΜΗΝΊΑ ΔΑΝΕΙΣΜΟΎ","ΗΜΕΡΟΜΗΝΊΑ ΕΠΙΣΤΡΟΦΗΣ","ΗΜΕΡΕΣ"]
[{"$f":"IFERROR(((Βιβλία[[#This Row],[ΗΜΕΡΟΜΗΝΊΑ ΔΑΝΕΙΣΜΟΎ]]+ΗμερήσιοΠεριθώριο)<TODAY())*(LEN(Βιβλία[[#This Row],[ΗΜΕΡΟΜΗΝΊΑ ΕΠΙΣΤΡΟΦΗΣ]])=0)*(LEN(Βιβλία[[#This Row],[ΗΜΕΡΟΜΗΝΊΑ ΔΑΝΕΙΣΜΟΎ]])>0),0)","v":0},"Αντιγόνη Γιώργη","someone@example.com","555-0100","Το μικρό σπίτι στο λιβάδι",{"$f":"DATE(YEAR(TODAY()),1,14)","v":"2018-01-14"},{"$f":"DATE(YEAR(TODAY()),1,21)","v":"2018-01-21"},{"$f":"IFERROR(IF(Βιβλία[[#This Row],[ΗΜΕΡΟΜΗΝΊΑ ΕΠΙΣΤΡΟΦΗΣ]]=\"\",IF(Βιβλία[[#This Row],[ΗΜΕΡΟΜΗΝΊΑ ΔΑΝΕΙΣΜΟΎ]]<>\"\", TODAY()-Βιβλία[[#This Row],[ΗΜΕΡΟΜΗΝΊΑ ΔΑΝΕΙΣΜΟΎ]],\"\"),Βιβλία[[#This Row],[ΗΜΕΡΟΜΗΝΊΑ ΕΠΙΣΤΡΟΦΗΣ]]-Βιβλία[[#This Row],[ΗΜΕΡΟΜΗΝΊΑ ΔΑΝΕΙΣΜΟΎ]]), \"\")","v":7}]
[{"$f":"IFERROR(((Βιβλία[[#This Row],[ΗΜΕΡΟΜΗΝΊΑ ΔΑΝΕΙΣΜΟΎ]]+ΗμερήσιοΠεριθώριο)<TODAY())*(LEN(Βιβλία[[#This Row],[ΗΜΕΡΟΜΗΝΊΑ ΕΠΙΣΤΡΟΦΗΣ]])=0)*(LEN(Βιβλία[[#This Row],[ΗΜΕΡΟΜΗΝΊΑ ΔΑΝΕΙΣΜΟΎ]])>0),0)","v":0},"Χρυσόστομος Φωτόπουλος","someone@example.com","555-0101","Σάρλοτ, η αραχνούλα",{"$f":"DATE(YEAR(TODAY()),2,15)","v":"2018-02-15"},{"$f":"DATE(YEAR(TODAY()),2,18)","v":"2018-02-18"},{"$f":"IFERROR(IF(Βιβλία[[#This Row],[ΗΜΕΡΟΜΗΝΊΑ ΕΠΙΣΤΡΟΦΗΣ]]=\"\",IF(Βιβλία[[#This Row],[ΗΜΕΡΟΜΗΝΊΑ ΔΑΝΕΙΣΜΟΎ]]<>\"\", TODAY()-Βιβλία[[#This Row],[ΗΜΕΡΟΜΗΝΊΑ ΔΑΝΕΙΣΜΟΎ]],\"\"),Βιβλία[[#This Row],[ΗΜΕΡΟΜΗΝΊΑ ΕΠΙΣΤΡΟΦΗΣ]]-Βιβλία[[#This Row],[ΗΜΕΡΟΜΗΝΊΑ ΔΑΝΕΙΣΜΟΎ]]), \"\")","v":3}]
[{"$f":"IFERROR(((Βιβλία[[#This Row],[ΗΜΕΡΟΜΗΝΊΑ ΔΑΝΕΙΣΜΟΎ]]+ΗμερήσιοΠεριθώριο)<TODAY())*(LEN(Βιβλία[[#This Row],[ΗΜΕΡΟΜΗΝΊΑ ΕΠΙΣΤΡΟΦΗΣ]])=0)*(LEN(Βιβλία[[#This Row],[ΗΜΕΡΟΜΗΝΊΑ ΔΑΝΕΙΣΜΟΎ]])>0),0)","v":0},"Ηλίας Παναγιώτου","someone@example.com","555-0102","Τα διόδια της φαντασίας",{"$f":"DATE(YEAR(TODAY()),2,17)","v":"2018-02-17"},{"$f":"DATE(YEAR(TODAY()),2,22)","v":"2018-02-22"},{"$f":"IFERROR(IF(Βιβλία[[#This Row],[ΗΜΕΡΟΜΗΝΊΑ ΕΠΙΣΤΡΟΦΗΣ]]=\"\",IF(Βιβλία[[#This Row],[ΗΜΕΡΟΜΗΝΊΑ ΔΑΝΕΙΣΜΟΎ]]<>\"\", TODAY()-Βιβλία[[#This Row],[ΗΜΕΡΟΜΗΝΊΑ ΔΑΝΕΙΣΜΟΎ]],\"\"),Βιβλία[[#This Row],[ΗΜΕΡΟΜΗΝΊΑ ΕΠΙΣΤΡΟΦΗΣ]]-Βιβλία[[#This Row],[ΗΜΕΡΟΜΗΝΊΑ ΔΑΝΕΙΣΜΟΎ]]), \"\")","v":5}]
[{"$f":"IFERROR(((Βιβλία[[#This Row],[ΗΜΕΡΟΜΗΝΊΑ ΔΑΝΕΙΣΜΟΎ]]+ΗμερήσιοΠεριθώριο)<TODAY())*(LEN(Βιβλία[[#This Row],[ΗΜΕΡΟΜΗΝΊΑ ΕΠΙΣΤΡΟΦΗΣ]])=0)*(LEN(Βιβλία[[#This Row],[ΗΜΕΡΟΜΗΝΊΑ ΔΑΝΕΙΣΜΟΎ]])>0),0)","v":0},"Γιώργος Μανές","someone@example.com","555-0103","Mrs. Frisby and the Rats of Nimh",{"$f":"DATE(YEAR(TODAY()),2,17)","v":"2018-02-17"},{"$f":"DATE(YEAR(TODAY()),2,25)","v":"2018-02-25"},{"$f":"IFERROR(IF(Βιβλία[[#This Row],[ΗΜΕΡΟΜΗΝΊΑ ΕΠΙΣΤΡΟΦΗΣ]]=\"\",IF(Βιβλία[[#This Row],[ΗΜΕΡΟΜΗΝΊΑ ΔΑΝΕΙΣΜΟΎ]]<>\"\", TODAY()-Βιβλία[[#This Row],[ΗΜΕΡΟΜΗΝΊΑ ΔΑΝΕΙΣΜΟΎ]],\"\"),Βιβλία[[#This Row],[ΗΜΕΡΟΜΗΝΊΑ ΕΠΙΣΤΡΟΦΗΣ]]-Βιβλία[[#This Row],[ΗΜΕΡΟΜΗΝΊΑ ΔΑΝΕΙΣΜΟΎ]]), \"\")","v":8}]
[{"$f":"IFERROR(((Βιβλία[[#This Row],[ΗΜΕΡΟΜΗΝΊΑ ΔΑΝΕΙΣΜΟΎ]]+ΗμερήσιοΠεριθώριο)<TODAY())*(LEN(Βιβλία[[#This Row],[ΗΜΕΡΟΜΗΝΊΑ ΕΠΙΣΤΡΟΦΗΣ]])=0)*(LEN(Βιβλία[[#This Row],[ΗΜΕΡΟΜΗΝΊΑ ΔΑΝΕΙΣΜΟΎ]])>0),0)","v":0},"Ιωάννα Ανδρέου","someone@example.com","555-0104","Ματίλντα",{"$f":"DATE(YEAR(TODAY()),2,18)","v":"2018-02-18"},{"$f":"DATE(YEAR(TODAY()),2,28)","v":"2018-02-28"},{"$f":"IFERROR(IF(Βιβλία[[#This Row],[ΗΜΕΡΟΜΗΝΊΑ ΕΠΙΣΤΡΟΦΗΣ]]=\"\",IF(Βιβλία[[#This Row],[ΗΜΕΡΟΜΗΝΊΑ ΔΑΝΕΙΣΜΟΎ]]<>\"\", TODAY()-Βιβλία[[#This Row],[ΗΜΕΡΟΜΗΝΊΑ ΔΑΝΕΙΣΜΟΎ]],\"\"),Βιβλία[[#This Row],[ΗΜΕΡΟΜΗΝΊΑ ΕΠΙΣΤΡΟΦΗΣ]]-Βιβλία[[#This Row],[ΗΜΕΡΟΜΗΝΊΑ ΔΑΝΕΙΣΜΟΎ]]), \"\")","v":10}]
[{"$f":"IFERROR(((Βιβλία[[#This Row],[ΗΜΕΡΟΜΗΝΊΑ ΔΑΝΕΙΣΜΟΎ]]+ΗμερήσιοΠεριθώριο)<TODAY())*(LEN(Βιβλία[[#This Row],[ΗΜΕΡΟΜΗΝΊΑ ΕΠΙΣΤΡΟΦΗΣ]])=0)*(LEN(Βιβλία[[#This Row],[ΗΜΕΡΟΜΗΝΊΑ ΔΑΝΕΙΣΜΟΎ]])>0),0)","v":1},"Αλεξία Αντωνοπούλου","someone@example.com","555-0105","Τα χρονικά της Νάρνια",{"$f":"DATE(YEAR(TODAY()),1,23)","v":"2018-01-23"},null,{"$f":"IFERROR(IF(Βιβλία[[#This Row],[ΗΜΕΡΟΜΗΝΊΑ ΕΠΙΣΤΡΟΦΗΣ]]=\"\",IF(Βιβλία[[#This Row],[ΗΜΕΡΟΜΗΝΊΑ ΔΑΝΕΙΣΜΟΎ]]<>\"\", TODAY()-Βιβλία[[#This Row],[ΗΜΕΡΟΜΗΝΊΑ ΔΑΝΕΙΣΜΟΎ]],\"\"),Βιβλία[[#This Row],[ΗΜΕΡΟΜΗΝΊΑ ΕΠΙΣΤΡΟΦΗΣ]]-Βιβλία[[#This Row],[ΗΜΕΡΟΜΗΝΊΑ ΔΑΝΕΙΣΜΟΎ]]), \"\")","v":163}]
[{"$f":"IFERROR(((Βιβλία[[#This Row],[ΗΜΕΡΟΜΗΝΊΑ ΔΑΝΕΙΣΜΟΎ]]+ΗμερήσιοΠεριθώριο)<TODAY())*(LEN(Βιβλία[[#This Row],[ΗΜΕΡΟΜΗΝΊΑ ΕΠΙΣΤΡΟΦΗΣ]])=0)*(LEN(Βιβλία[[#This Row],[ΗΜΕΡΟΜΗΝΊΑ ΔΑΝΕΙΣΜΟΎ]])>0),0)","v":0},"Αλίκη Αναστασίου","someone@example.com","555-0106","The Witch of Blackbird Pond",{"$f":"TODAY()","v":"2018-07-05"},null,{"$f":"IFERROR(IF(Βιβλία[[#This Row],[ΗΜΕΡΟΜΗΝΊΑ ΕΠΙΣΤΡΟΦΗΣ]]=\"\",IF(Βιβλία[[#This Row],[ΗΜΕΡΟΜΗΝΊΑ ΔΑΝΕΙΣΜΟΎ]]<>\"\", TODAY()-Βιβλία[[#This Row],[ΗΜΕΡΟΜΗΝΊΑ ΔΑΝΕΙΣΜΟΎ]],\"\"),Βιβλία[[#This Row],[ΗΜΕΡΟΜΗΝΊΑ ΕΠΙΣΤΡΟΦΗΣ]]-Βιβλία[[#This Row],[ΗΜΕΡΟΜΗΝΊΑ ΔΑΝΕΙΣΜΟΎ]]), \"\")","v":0}]